{"text_format":"2","workbook":"xlsx","n_sheets":3,"sheets":["Összesen","Mesterséges szellőzés","Központi fűtés"],"not_rendered":{"charts":0,"images":0,"macros":0,"external_links":0,"defined_names":0,"comments":0,"pivot_tables":0},"unopened":[],"bounds":{"document_bytes":16777216,"sheet_cells":100000,"run_cost":"one","rows_first":2000,"rows_last":500,"rows_between":2000,"halvings":0,"cell_chars":16384,"cell_head_chars":4096},"cells_cut":0,"cells_raw":0,"read":"whole","date_system":"1900"}

{"sheet":"Összesen","index":0,"n_rows":6,"n_cols":3,"rows_kept":6,"cut":false,"hidden":false,"merged":[]}
["Munkanem","Munkadíj","Anyagköltség"]
["Mesterséges szellőzés",{"$f":"'Mesterséges szellőzés'!H46","v":0},{"$f":"'Mesterséges szellőzés'!I46","v":0}]
["Központi fűtés",{"$f":"'Központi fűtés'!H14","v":0},{"$f":"'Központi fűtés'!I14","v":0}]
[]
[]
["Összesen",{"$f":"SUM(B2:B5)","v":0},{"$f":"SUM(C2:C5)","v":0}]

{"sheet":"Mesterséges szellőzés","index":1,"n_rows":46,"n_cols":9,"rows_kept":46,"cut":false,"hidden":false,"merged":[]}
["No.","Azonosító","Mennyiség","Egys.","Szöveg","Óradij","Anyagár","xÓradij","xAnyagár"]
[]
[1,"83-006-4.1.1-0173510",1,"db","Tetőventilátor elhelyezése, függőleges kifúvású, lábazati elemre, járókerék-átmérő: 355 mm-ig AERECO VTZ 1077 tipusú fordulatszám szabályozott tetőventilátor, EC motorral szerelve, 1600 m3/h (300 Pa), 230 VAC/50Hz, max. teljesítmény 157 W, Csz.: AER-VTZ 1077",null,null,{"$f":"C3*F3","v":0},{"$f":"C3*G3","v":0}]
[2,"83-002-4.1.1.1.1-0154501",21,"db","Egyéb befúvó és elszívó szerkezetek, kör vagy négyszög keresztmetszetű légszelep felszerelése lemezcsatornára, NÁ 350 mm-ig AERECO BXC 211 higroszabályozású légelvezető airflow+ funkcióval 12-80/130 m3/h (100 Pa), {átmérő}100 mm, Csz.: AER-BXC 211",null,null,{"$f":"C4*F4","v":0},{"$f":"C4*G4","v":0}]
[3,"83-002-1.1.2.2-0453612",15,"db","Négyszög keresztmetszetű légrács szerelése ajtóra vagy falnyílásba, felületnagyság: 0,11-0,25 m2 között SIG Air Handling alumínium ajtó-, vagy átszellőző rács natúr vagy RAL9010, DRR 600 X 200, LxH=600x200 mm, Csz.: A030101600200",null,null,0,0]
[4,"83-001-2.1.1-0830603",27,"m","Kör keresztmetszetű légcsatorna és idomaik szerelése, tartószerkezet nélkül, spirálkorcolt lemezcső, horganyzott acéllemezből, NÁ 63-150 mm között LINDAB SR spirálkorcolt lemezcső, horganyzott acéllemezből, lemez vtg. 0,5 mm, DN 100, SR-100",null,null,0,0]
[5,"83-001-2.1.1-0830604",21,"m","LINDAB SR spirálkorcolt lemezcső, horganyzott acéllemezből, lemez vtg. 0,5 mm, DN 125, SR-125",null,null,0,0]
[6,"83-001-2.1.2-0830606",3,"m","NÁ 160-250 mm között LINDAB SR spirálkorcolt lemezcső, horganyzott acéllemezből, lemez vtg. 0,5 mm, DN 160, SR-160",null,null,0,0]
[7,"83-001-2.1.2-0830608",3,"m","LINDAB SR spirálkorcolt lemezcső, horganyzott acéllemezből, lemez vtg. 0,5 mm, DN 200, SR-200",null,null,0,0]
[8,"83-001-2.1.3-0830612",3,"m","NÁ 280-450 mm között LINDAB SR spirálkorcolt lemezcső, horganyzott acéllemezből, lemez vtg. 0,6 mm, DN 315, SR-315",null,null,0,0]
[9,"83-001-2.1.3-0830613",3,"m","LINDAB SR spirálkorcolt lemezcső, horganyzott acéllemezből, lemez vtg. 0,6 mm, DN 355, SR-355",null,null,0,0]
[10,"83-001-2.3.1.8-0868003",28,"db","Kör keresztmetszetű légcsatorna és idomaik szerelése, tartószerkezet nélkül, horganyzott acéllemez idomok, spirálkorcolt vagy hajlítható lemezcsőhöz, NÁ 80-150 mm között, ív, könyök idom LINDAB SAFE BU 90° -os préselt könyökidom, gumitömítéssel, horganyzott acéllemezből, DN 100, BU-100-90",null,null,0,0]
[11,"83-001-2.3.1.8-0868004",5,"db","LINDAB SAFE BU 90° -os préselt könyökidom, gumitömítéssel, horganyzott acéllemezből, DN 125, BU-125-90",null,null,0,0]
[12,"83-001-2.3.1.1-0869001",7,"db","NÁ 80-150 mm között, elágazó idom LINDAB SAFE TCPU préselt T-idom, gumitömítéssel, horganyzott acéllemezből, DN 100/100, TCPU-100-100",null,null,0,0]
[13,"83-001-2.3.1.1-0869002",7,"db","LINDAB SAFE TCPU préselt T-idom, gumitömítéssel, horganyzott acéllemezből, DN 125/100, TCPU-125-100",null,null,0,0]
[14,"83-001-2.3.2.1-0869008",3,"db","NÁ 160-250 mm között, elágazó idom LINDAB SAFE TCPU préselt T-idom, gumitömítéssel, horganyzott acéllemezből, DN 160/125, TCPU-160-125",null,null,0,0]
[15,"83-001-2.3.2.1-0869213",1,"db","LINDAB SAFE TU épített excentrikus T-idom, gumitömítéssel, horganyzott acéllemezből, DN 200/160, TU-200-160",null,null,0,0]
[16,"83-001-2.3.3.1-0869053",2,"db","NÁ 280-450 mm között, elágazó idom LINDAB SAFE TCPU préselt T-idom, gumitömítéssel, horganyzott acéllemezből, DN 315/160, TCPU-315-160",null,null,0,0]
[17,"83-001-2.3.3.1-0869057",1,"db","LINDAB SAFE TCPU préselt T-idom, gumitömítéssel, horganyzott acéllemezből, DN 315/315, TCPU-315-315",null,null,0,0]
[18,"83-001-2.3.1.2-0868161",7,"db","NÁ 80-150 mm között, szűkítő idom LINDAB SAFE RCFU préselt koncentrikus szűkítő idom, idomkapcsolós végződéssel, horganyzott acéllemezből, DN 125/100, RCFU-125-100",null,null,0,0]
[19,"83-001-2.3.2.2-0868165",3,"db","NÁ 160-250 mm között, szűkítő idom LINDAB SAFE RCFU préselt koncentrikus szűkítő idom, idomkapcsolós végződéssel, horganyzott acéllemezből, DN 160/125, RCFU-160-125",null,null,0,0]
[20,"83-001-2.3.2.2-0868172",1,"db","LINDAB SAFE RCFU préselt koncentrikus szűkítő idom, idomkapcsolós végződéssel, horganyzott acéllemezből, DN 200/125, RCFU-200-125",null,null,0,0]
[21,"83-001-2.3.3.2-0868182",1,"db","NÁ 280-450 mm között, szűkítő idom LINDAB SAFE RCFU préselt koncentrikus szűkítő idom, idomkapcsolós végződéssel, horganyzott acéllemezből, DN 315/200, RCFU-315-200",null,null,0,0]
[22,"83-001-2.3.3.9-0868970",1,"db","NÁ 280-450 mm között, egyéb idomok, kiegészítő elemek (esővédő, szellőzőcsonk, kifúvó fej, fali hüvely, deflektor, tisztító nyílás, beömlő nyílás, bilincs) LINDAB SAFE ILU beömlőnyílás, gumitömítéssel, horganyzott acéllemezből, DN 315, ILU-315",null,null,0,0]
[23,"83-001-2.3.3.7-0868684",1,"db","csővégelzáró elem LINDAB SAFE EPF véglezáró sapka, horganyzott acéllemezből, DN 315, EPF-315",null,null,0,0]
[24,"48-830-221-010-71-87810",33,"m2","SZIGETELÉSEK Épületgépészeti és ipari  csővezeték, készülék és berendezési tárgy szigetelése szintetikus gumi, szintetikus kaucsuk, polietilén, vagy poliuretán anyagú lemezzel, teljes felületen ragasztással, KAIFLEX ST típusú, szigetelőlemez, sima, anyaga:  szintetikus kaucsuk 10 mm vtg.",null,null,0,0]
[25,"83-812-101-002-21-62131",35,"db","Légcsatornabilincs rögzített zajcsillapító gumibetéttel, mindkét oldalon csavaros rögzítéssel, spirálkorcolt légcsatornák rögzítésére felszerelve, HILTI-MV-PI típusú, (DD 11 acél, galvanikus horganyzással, EPDM profilgumi) MV-PI NA  100   M 8               386481",null,null,0,0]
[26,"83-812-102-003-21-62131",18,"db","MV-PI NA  125   M 8               386482",null,null,0,0]
[27,"83-812-102-006-21-62131",5,"db","MV-PI NA  160   M 8               386485",null,null,0,0]
[28,"83-812-103-008-21-62131",4,"db","MV-PI NA  200   M 8               386487",null,null,0,0]
[29,"83-812-104-013-21-62131",4,"db","MV-PI NA  315   M 8/10            386492",null,null,0,0]
[30,"33-063-1.1.2",11,"db","Faláttörés 30x30 cm méretig, téglafalban, 12,01-25 cm falvastagság között",null,null,0,0]
[31,"33-063-2.1.4",3,"db","Födémáttörés 50x50 cm méretig, 30 cm födémvastagságig, téglabetétes vasbeton födémben",null,null,0,0]
[32,"33-091-4.1.1-1110002",4,"db","Teherhordó és kitöltő falazat, égetett agyag-kerámia termékekből, meglévő falazati hiányosságok pótlása, falazat pótlása, 0,01 m3-ig Kisméretű tömör tégla 250x120x65 mm I.o. Hf5-mc, falazó, cementes mészhabarcs",null,null,0,0]
[33,"33-091-21.1.1-1110112",3,"db","Boltozatok, födémáttörések helyreállítása, 0,1 m2 felületig, tégla szerkezetű födémben Kisméretű tömör tégla 250x120x65 mm I.o. Hf5-mc, falazó, cementes mészhabarcs",null,null,0,0]
[34,"47-000-1.3.1.2",75,"m2","Belső festéseknél felület előkészítése, részmunkák; vizes diszperziós falfesték lekaparása, bármilyen padozatú helységben, tagolt felületen",null,null,0,0]
[35,"47-000-1.99.1.2.1.2-0218023",75,"m2","Belső festéseknél felület előkészítése, részmunkák; felület glettelése zsákos kiszerelésű anyagból (alapozóval, sarokvédelemmel), bármilyen padozatú helyiségben, vakolt felületen, 1,5 mm vastagságban tagolt felületen Rigips Rimano 0-3 belsőtéri nagyszilárdságú glettelő gipsz",null,null,0,0]
[36,"47-011-91.1.2-0156501",75,"m2","Műanyag-diszperziós festékrendszer felhordása új vagy régi lekapart, lemosott, vakolaton, tagolt sima felületen Multifund matt, mosásálló beltéri festék, fehér, Multidecor díszítő festékkel",null,null,0,0]
[37,"K-tétel",1,"db","ÜZEMBEVÉTELI ELJÁRÁSOK Gépészetileg és elektromosan készre szerelt állapotban a szellőztető berendezés elektromos bekötéseinek ellenőrzése, készülék elindítása, helyes üzemének ellenőrzése.",null,null,0,0]
[38,"K-tétel",1,"db","Légcsatorna hálózat és tartozékainak üzempróbái, szabályzó szerkezetek beszabályozása vezetékrendszer tömörségi vizsgálata, a teljes légtechnikai rendszer beszabályozása és próbaüzeme.",null,null,0,0]
[39,"83-991-011-001",4,"óra","Légtechnikai szerelési munkák átadás-átvételi eljárásával kapcsolatos költségek, átadási dokumentáció készítés",null,null,0,0]
[40,"83-991-011-002",2,"óra","átadási eljárás lefolytatása",null,null,0,0]
[41,"83-991-011-003",4,"óra","kezelési utasítás készítés",null,null,0,0]
[42,"83-991-011-004",2,"óra","kezeléssel kapcsolatos kioktatás",null,null,0,0]
[]
[{"$nulls":4},"Összesen",null,null,{"$f":"SUM(H3:H45)","v":0},{"$f":"SUM(I3:I45)","v":0}]

{"sheet":"Központi fűtés","index":2,"n_rows":46,"n_cols":9,"rows_kept":46,"cut":false,"hidden":false,"merged":[]}
["No.","Azonosító","Mennyiség","Egys.","Szöveg","Óradij","Anyagár","xÓradij","xAnyagár"]
[{"$nulls":4},"Központi fűtés"]
[1,"K-tétel",7,null,"Radiátor kötések átalakítása, a meglévő kötés megbontásával, új kötés kialakításával, présfitting idomos, kívül horganyzott acélcső vezeték alkalmazásával",null,null,{"$f":"(C3*F3)","v":0},{"$f":"(C3*G3)","v":0}]
[2,"K-tétel",7,"db","Beépített térfogatáram korlátozós radiátorszelep Sarok vagy egyenes kivitelben Gyártmány: HEIMEIER Tipus: ECLIPSE, NÁ15 Eclipse 1/2˝ radiátorszelep",null,null,{"$f":"(C4*F4)","v":0},{"$f":"(C4*G4)","v":0}]
[3,"82-001-17.1.2-0118345",7,"db","Termosztatikus szelepfej felszerelése radiátorszelepre, hollandival csatlakoztatva Heimeier K termosztátfej beépített érzékelővel, lopásvédelem gyűrűvel, hőmérséklet korlátozással, 6120-00.500",null,null,{"$f":"(C5*F5)","v":0},{"$f":"(C5*G5)","v":0}]
[4,"82-001-7.2.2-0130598",7,"db","Kétoldalon menetes vagy roppantógyűrűs szerelvény elhelyezése, külső vagy belső menettel, illetve hollandival csatlakoztatva DN 15 gömbcsap, víz- és gázfőcsap MOFÉM AHA Univerzális gömbcsap 1/2\" kb. menettel, toldattal, névleges méret 15 mm, sárgaréz, natúr, 16 bar, Kód: 113-0009-00",null,null,{"$f":"(C6*F6)","v":0},{"$f":"(C6*G6)","v":0}]
[5,"82-999-211-001",3,"óra","Fűtésszerelési munkák próbái, fűtési vezetékrendszer nyomáspróbája",null,null,{"$f":"(C7*F7)","v":0},{"$f":"(C7*G7)","v":0}]
[6,"82-999-221-001",1,"db","próbafűtés, radiátorok beszabályozása - 23.260 W telj.-ig",null,null,{"$f":"(C8*F8)","v":0},{"$f":"(C8*G8)","v":0}]
[7,"82-999-241-001",2,"óra","Fűtésszerelési munkák átadás-átvételi eljárásával kapcsolatos költségek, átadási dokumentáció készítés",null,null,{"$f":"(C9*F9)","v":0},{"$f":"(C9*G9)","v":0}]
[8,"82-999-241-002",1,"óra","átadási eljárás lefolytatása",null,null,{"$f":"(C10*F10)","v":0},{"$f":"(C10*G10)","v":0}]
[9,"82-999-241-003",2,"óra","kezelési utasítás készítése",null,null,{"$f":"(C11*F11)","v":0},{"$f":"(C11*G11)","v":0}]
[10,"82-999-241-004",1,"óra","kezelésre vonatkozó kioktatás",null,null,{"$f":"(C12*F12)","v":0},{"$f":"(C12*G12)","v":0}]
[]
[{"$nulls":4},"Összesen",null,null,{"$f":"SUM(H3:H13)","v":0},{"$f":"SUM(I3:I13)","v":0}]
{"$rows_empty":31}
[{"$nulls":4},"Összesen:",null,null,{"$f":"SUM(H3:H44)","v":0},{"$f":"SUM(I3:I44)","v":0}]